fUST/lending_fUST_20260615
["ID","MTS","AMOUNT","RATE_DAILY","PERIOD"]
[425103234,1781500241000,-1092.73,0.00016712,2]
[425103235,1781500241000,-1735.34,0.00016712,2]
[425103239,1781500241000,-500.0,0.00016712,2]
[425103237,1781500241000,-2322.52,0.00016712,2]
[425103232,1781500241000,-500.0,0.00016712,2]
[425103241,1781500241000,-2543.03,0.00016712,2]
[425103223,1781500241000,-17347.12,0.00016712,2]
[425103243,1781500241000,-4778.67,0.00016712,2]
[425103238,1781500241000,-500.0,0.00016712,2]
[425103250,1781500241000,-500.0,0.00016712,2]
[425103257,1781500241000,-500.0,0.00016712,2]
[425103255,1781500241000,-1386.03,0.00016712,2]
[425103262,1781500241000,-1153.18,0.00016712,2]
[425103261,1781500241000,-1158.63,0.00016712,2]
[425103248,1781500241000,-911.29,0.00016712,2]
[425103259,1781500241000,-500.0,0.00016712,2]
[425103249,1781500241000,-500.0,0.00016712,2]
[425103245,1781500241000,-500.0,0.00016712,2]
[425103247,1781500241000,-500.0,0.00016712,2]
[425103260,1781500241000,-1205.06,0.00016712,2]
[425103258,1781500241000,-768.6,0.00016712,2]
[425103309,1781500242000,-834.06,0.00016986,2]
[425103308,1781500242000,-500.0,0.00016986,2]
[425103307,1781500242000,-500.0,0.00016986,2]
[425103306,1781500242000,-500.0,0.00016986,2]
[425103310,1781500242000,-151.0,0.00016986,2]
[425103319,1781500242000,-1502.29,0.00016986,2]
[425103316,1781500242000,-745.26,0.00016986,2]
[425103320,1781500242000,-500.0,0.00016986,2]
[425103318,1781500242000,-500.0,0.00016986,2]
[425103315,1781500242000,-500.0,0.00016986,2]
[425103321,1781500242000,-619.47,0.00016986,2]
[425103311,1781500242000,-151.0,0.00016986,2]
[425103305,1781500242000,-500.0,0.00016986,2]
[425103302,1781500242000,-500.0,0.00016986,2]
[425103314,1781500242000,-778.86,0.00016986,2]
[425103303,1781500242000,-500.0,0.00016986,2]
[425103313,1781500242000,-743.08,0.00016986,2]
[425103304,1781500242000,-500.0,0.00016986,2]
[425103300,1781500242000,-500.0,0.00016986,2]
[425103295,1781500242000,-500.0,0.00016986,2]
[425103296,1781500242000,-500.0,0.00016986,2]
[425103301,1781500242000,-516.3,0.00016986,2]
[425103297,1781500242000,-500.0,0.00016986,2]
[425103298,1781500242000,-679.43,0.00016986,2]
[425103299,1781500242000,-500.0,0.00016986,2]
[425103294,1781500242000,-680.19,0.00016986,2]
[425103325,1781500242000,-500.0,0.00016986,2]
[425103312,1781500242000,-228.76512,0.00016986,2]
[425103322,1781500242000,-585.79,0.00016986,2]
[425103348,1781500242000,-667.54,0.00016986,2]
[425103327,1781500242000,-500.0,0.00016986,2]
[425103351,1781500242000,-273.19292551,0.00016986,2]
[425103352,1781500242000,-1211.36,0.00016986,2]
[425103353,1781500242000,-712.03951561,0.00016986,2]
[425103350,1781500242000,-226.80707449,0.00016986,2]
[425103345,1781500242000,-843.81,0.00016986,2]
[425103347,1781500242000,-500.0,0.00016986,2]
[425103346,1781500242000,-500.0,0.00016986,2]
[425103323,1781500242000,-500.0,0.00016986,2]
[425103343,1781500242000,-500.0,0.00016986,2]
[425103349,1781500242000,-1645.76,0.00016986,2]
[425103342,1781500242000,-500.0,0.00016986,2]
[425103344,1781500242000,-500.0,0.00016986,2]
[425103340,1781500242000,-583.15,0.00016986,2]
[425103333,1781500242000,-500.0,0.00016986,2]
[425103341,1781500242000,-1085.35,0.00016986,2]
[425103328,1781500242000,-661.05,0.00016986,2]
[425103330,1781500242000,-500.0,0.00016986,2]
[425103332,1781500242000,-500.0,0.00016986,2]
[425103329,1781500242000,-965.46,0.00016986,2]
[425103338,1781500242000,-500.0,0.00016986,2]
[425103339,1781500242000,-500.81,0.00016986,2]
[425103337,1781500242000,-2936.92,0.00016986,2]
[425103335,1781500242000,-500.0,0.00016986,2]
[425103334,1781500242000,-500.0,0.00016986,2]
[425103336,1781500242000,-500.0,0.00016986,2]
[425103324,1781500242000,-500.0,0.00016986,2]
[425103326,1781500242000,-500.0,0.00016986,2]
[425103317,1781500242000,-500.0,0.00016986,2]
[425103331,1781500242000,-849.51,0.00016986,2]
[425103382,1781500243000,-500.0,0.00016986,2]
[425103384,1781500243000,-1420.0,0.00016986,2]
[425103381,1781500243000,-338.82048439,0.00016986,2]
[425103383,1781500243000,-7061.01353034,0.00016986,2]
[425103385,1781500244000,-6790.46515608,0.00016986,2]
[425103399,1781500244000,-500.0,0.00016986,2]
[425103398,1781500244000,-500.0,0.00016986,2]
[425103387,1781500244000,-731.76,0.00016986,2]
[425103397,1781500244000,-2322.52,0.00016986,2]
[425103386,1781500244000,-2075.64131358,0.00016986,2]
[425103389,1781500244000,-1201.86,0.00016986,2]
[425103390,1781500244000,-500.0,0.00016986,2]
[425103388,1781500244000,-500.0,0.00016986,2]
[425103394,1781500244000,-1092.73,0.00016986,2]
[425103391,1781500244000,-1064.08,0.00016986,2]
[425103402,1781500244000,-500.0,0.00016986,2]
[425103400,1781500244000,-2543.03,0.00016986,2]
[425103403,1781500244000,-396.09868642,0.00016986,2]
[425103393,1781500244000,-500.0,0.00016986,2]
[425103392,1781500244000,-500.0,0.00016986,2]
[425103396,1781500244000,-500.0,0.00016986,2]
[425103395,1781500244000,-1735.34,0.00016986,2]
[425103401,1781500244000,-4778.67,0.00016986,2]
[425103421,1781500247000,-60016.26393147,0.00014799,2]
[425103420,1781500247000,-280.2939363,0.00014799,2]
[425103617,1781501438000,-500.0,0.00014597,2]
[425103616,1781501438000,-500.0,0.00014597,2]
[425103625,1781501438000,-600.0,0.00015094,2]
[425103626,1781501438000,-447.05493459,0.00015095,7]
[425103615,1781501438000,-500.0,0.00014597,2]
[425103614,1781501438000,-500.0,0.00014597,2]
[425103613,1781501438000,-500.0,0.00014597,2]
[425103607,1781501438000,-500.0,0.00014597,2]
[425103605,1781501438000,-166.77,0.00014046,2]
[425103598,1781501438000,-3492.75261647,0.00010928,2]
[425103599,1781501438000,-1255.1269476,0.00012511,2]
[425103610,1781501438000,-500.0,0.00014597,2]
[425103601,1781501438000,-500.0,0.00013698,2]
[425103603,1781501438000,-509.77720375,0.00014,2]
[425103600,1781501438000,-500.0,0.00013698,2]
[425103608,1781501438000,-500.0,0.00014597,2]
[425103612,1781501438000,-500.0,0.00014597,2]
[425103597,1781501438000,-5000.0,0.00010819,2]
[425103602,1781501438000,-269.8950025,0.00013699,2]
[425103618,1781501438000,-238.98,0.00014597,2]
[425103619,1781501438000,-500.0,0.00014795,2]
[425103642,1781501438000,-190684.95201963,0.00016238,2]
[425103637,1781501438000,-447.05493459,0.00015983,7]
[425103638,1781501438000,-1000.0,0.00016,2]
[425103641,1781501438000,-240382.89081255,0.00016238,2]
[425103639,1781501438000,-151.547,0.00016228,2]
[425103640,1781501438000,-271.72,0.00016228,2]
[425103636,1781501438000,-1840.0,0.00015893,2]
[425103622,1781501438000,-1000.0,0.00015,2]
[425103635,1781501438000,-1418.0,0.00015893,2]
[425103631,1781501438000,-957.0,0.00015893,2]
[425103620,1781501438000,-500.0,0.00014795,2]
[425103630,1781501438000,-363.13106524,0.00015802,2]
[425103629,1781501438000,-10778.62837312,0.00015793,2]
[425103624,1781501438000,-185.897659,0.00015068,2]
[425103623,1781501438000,-200.0,0.00015,2]
[425103627,1781501438000,-169.026889,0.00015342,2]
[425103621,1781501438000,-447.05493459,0.00014799,7]
[425103628,1781501438000,-447.05493459,0.00015539,7]
[425103632,1781501438000,-458.055,0.00015893,2]
[425103633,1781501438000,-192.146,0.00015893,2]
[425103634,1781501438000,-445.0,0.00015893,2]
[425103786,1781501446000,-12944.84824908,0.00016238,2]
[425103785,1781501446000,-15351.31263967,0.00016238,2]
[425103792,1781501484000,45.42502283,0.00015792,2]
[425103791,1781501484000,500.0,0.00015792,2]
[425103790,1781501484000,500.0,0.00015792,2]
[425103851,1781501727000,2160.64934307,0.000231,30]
[425103853,1781501732000,2160.64934305,0.000231,30]
[425103855,1781501737000,2160.64934305,0.000231,30]
[425103870,1781502156000,1296.38960584,0.000231,30]
[425103871,1781502161000,1296.38960583,0.000231,30]
[425103872,1781502166000,1296.38960583,0.000231,30]
[425103877,1781502223000,10129.290473,0.0002411,30]
[425103886,1781502496000,777.8337635,0.000231,30]
[425103887,1781502501000,777.8337635,0.000231,30]
[425103888,1781502506000,777.8337635,0.000231,30]
[425104034,1781502632000,-223.5274673,0.00013526,7]
[425104036,1781502632000,-500.0,0.00013698,2]
[425104037,1781502632000,-209.78842396,0.00013955,14]
[425104035,1781502632000,-500.0,0.00013698,2]
[425104039,1781502632000,-335.29120099,0.00014322,7]
[425104042,1781502632000,-558.48050335,0.00014487,2]
[425104040,1781502632000,-500.0,0.00014419,2]
[425104041,1781502632000,-500.0,0.00014419,2]
[425104038,1781502632000,-2050.8607749,0.00014204,2]
[425104057,1781502638000,-516.09,0.00014798,2]
[425104047,1781502638000,-2726.82,0.00014487,2]
[425104049,1781502638000,-500.0,0.00014796,2]
[425104048,1781502638000,-665.11415165,0.00014487,2]
[425104050,1781502638000,-500.0,0.00014798,2]
[425104051,1781502638000,-500.0,0.00014798,2]
[425104052,1781502638000,-500.0,0.00014798,2]
[425104056,1781502638000,-500.0,0.00014798,2]
[425104053,1781502638000,-500.0,0.00014798,2]
[425104058,1781502638000,-3961.00959386,0.00014798,2]
[425104054,1781502638000,-500.0,0.00014798,2]
[425104055,1781502638000,-500.0,0.00014798,2]
[425104059,1781502638000,-185.897659,0.00015068,2]
[425104065,1781502638000,-186.001,0.000159,2]
[425104062,1781502638000,-1840.0,0.000159,2]
[425104064,1781502638000,-957.0,0.000159,2]
[425104060,1781502638000,-1766.39563586,0.0001533,2]
[425104061,1781502638000,-357.2816377,0.0001533,2]
[425104066,1781502638000,-219.54,0.000159,2]
[425104070,1781502638000,-498652.82639702,0.00016035,2]
[425104069,1781502638000,-29851.30126048,0.00016035,2]
[425104068,1781502638000,-172.95826501,0.00015936,2]
[425104067,1781502638000,-169.026889,0.00015928,2]
[425104063,1781502638000,-1418.0,0.000159,2]
[425104086,1781502640000,-364.124706,0.00015935,2]
[425104085,1781502640000,-3288.35340445,0.00015935,2]
[425104087,1781502641000,-3294.84625742,0.00015935,2]
[425104138,1781502643000,-750.90700279,0.00015935,2]
[425104137,1781502643000,-255.56866147,0.00015935,2]
[425104186,1781502646000,-304.0,0.00015935,2]
[425104192,1781502792000,3000.0,0.000241,30]
[425104195,1781502837000,466.7002581,0.000231,30]
[425104196,1781502842000,466.7002581,0.000231,30]
[425104197,1781502847000,466.7002581,0.000231,30]
[425104216,1781503039000,22312.40708786,0.0002411,30]
[425104360,1781503832000,-1769.64279535,0.00013282,13]
[425104388,1781503832000,-300.0,0.00013822,2]
[425104367,1781503832000,-5000.0,0.00013149,13]
[425104369,1781503832000,-427.40917235,0.00013282,13]
[425104373,1781503832000,-693.71913125,0.00013282,13]
[425104371,1781503832000,-1672.9665727,0.00013282,13]
[425104385,1781503832000,-300.0,0.00013822,2]
[425104387,1781503832000,-300.0,0.00013822,2]
[425104362,1781503832000,-436.26232835,0.00013282,13]
[425104377,1781503832000,-300.0,0.00013822,2]
[425104390,1781503832000,-300.0,0.00013822,2]
[425104391,1781503832000,-50.71566062,0.00013822,2]
[425104389,1781503832000,-300.0,0.00013822,2]
[425104380,1781503832000,-300.0,0.00013822,2]
[425104378,1781503832000,-300.0,0.00013822,2]
[425104375,1781503832000,-272.351427,0.00013416,2]
[425104382,1781503832000,-300.0,0.00013822,2]
[425104383,1781503832000,-300.0,0.00013822,2]
[425104451,1781503838000,-300.0,0.00013822,2]
[425104449,1781503838000,-249.28433938,0.00013822,2]
[425104455,1781503838000,-300.0,0.00013822,2]
[425104457,1781503838000,-300.0,0.00013822,2]
[425104459,1781503838000,-616.1357568,0.00014523,2]
[425104453,1781503838000,-300.0,0.00013822,2]
[425104463,1781503838000,-160.0,0.00015131,2]
[425104461,1781503838000,-185.897659,0.00015068,2]
[425104466,1781503838000,-3684.24502285,0.00015135,2]
[425104468,1781503838000,-151.547,0.00015437,2]
[425104470,1781503838000,-600.0,0.00015437,2]
[425104472,1781503838000,-5306.84598676,0.00015541,2]
[425104464,1781503838000,-4502.96613904,0.00015135,2]
[425104636,1781503841000,-1534.06527739,0.00015541,2]
[425104635,1781503841000,-3101.7112518,0.00015541,2]
[425104637,1781503842000,-4537.01182609,0.00015544,2]
[425104638,1781503842000,-332.8754009,0.00015544,2]
[425104639,1781503842000,-786.88397015,0.00015544,2]
[425104669,1781503843000,-644.50607039,0.00015544,2]
[425104658,1781503843000,-6227.8426744,0.00015544,2]
[425104654,1781503843000,-3928.60947472,0.00015544,2]
[425104656,1781503843000,-5502.35841072,0.00015544,2]
[425104652,1781503843000,-6425.6768635,0.00015544,2]
[425104701,1781503846000,-450.2966139,0.00014744,2]
[425104702,1781503846000,-368.42450229,0.00014744,2]
[425104704,1781503846000,-12519.12770788,0.00015544,2]
[425104703,1781503846000,-812.97958936,0.00015544,2]
[425104706,1781503847000,-44695.27226744,0.00015544,2]
[425104726,1781504552000,-2679.77821131,0.0002,20]
[425104724,1781504552000,-168.69463257,0.00018629,20]
[425104725,1781504552000,-152.1197367,0.00019,20]
[425104729,1781504559000,-84508.91823684,0.000199,10]
[425104728,1781504559000,-206.01316165,0.00018226,14]
[425104727,1781504559000,-447.0549346,0.00016575,7]
[425104732,1781504737000,-266.58174353,0.00014744,2]
[425104733,1781504753000,-224.2001609,0.00014744,2]
[425104734,1781504753000,-354.40912575,0.00014744,2]
[425104832,1781504796000,150000.0,0.00018,30]
[425104865,1781505032000,-2238.35,0.00014206,2]
[425104866,1781505032000,-173.49815714,0.0001435,2]
[425104884,1781505032000,-9797.0,0.00015,7]
[425104882,1781505032000,-2649.01028481,0.00015,7]
[425104880,1781505032000,-3394.5303889,0.00015,7]
[425104867,1781505032000,-311.98438617,0.0001435,2]
[425104869,1781505032000,-47.13970514,0.00014744,2]
[425104875,1781505032000,-67368.62094726,0.00015,7]
[425104873,1781505032000,-477.94610916,0.00014999,2]
[425104877,1781505032000,-65757.36131107,0.00015,7]
[425104871,1781505032000,-9204.41431096,0.000149,2]
[425104918,1781505038000,-161.85590683,0.00015147,2]
[425104919,1781505038000,-162.48,0.0001515,2]
[425104923,1781505038000,-292797.7555736,0.0001524,2]
[425104921,1781505038000,-2028.97951315,0.0001524,2]
[425104920,1781505038000,-44810.1953864,0.0001524,2]
[425104917,1781505038000,-417.15472785,0.00015,7]
[425104916,1781505038000,-1036.82703874,0.00015,7]
[425104922,1781505038000,-6949.79294667,0.0001524,2]
[425105098,1781505043000,-4135.43088264,0.0001524,2]
[425105100,1781505043000,-7778.05196821,0.0001524,2]
[425105099,1781505043000,-13429.38261749,0.0001524,2]
[425105104,1781505046000,-146877.37882856,0.0001524,2]
[425105105,1781505047000,-365.14969999,0.0001524,2]
[425105180,1781506234000,-2240.95754481,0.00012229,2]
[425105178,1781506234000,-1031.87654538,0.00012229,2]
[425105171,1781506234000,-428.91138341,0.00012229,2]
[425105213,1781506238000,-500.0,0.00012328,2]
[425105215,1781506238000,-500.0,0.00012328,2]
[425105218,1781506238000,-504.21868562,0.00012328,2]
[425105212,1781506238000,-4619.36079849,0.00012229,2]
[425105214,1781506238000,-500.0,0.00012328,2]
[425105219,1781506238000,-500.0,0.00012328,2]
[425105217,1781506238000,-393.50772709,0.00012328,2]
[425105220,1781506238000,-500.0,0.00012328,2]
[425105221,1781506238000,-500.0,0.00012328,2]
[425105222,1781506238000,-500.0,0.00012328,2]
[425105223,1781506238000,-500.0,0.00012328,2]
[425105216,1781506238000,-500.0,0.00012328,2]
[425105267,1781506239000,-336.38,0.00012329,2]
[425105249,1781506239000,-170.76433046,0.00012328,2]
[425105254,1781506239000,-3599.02,0.00012329,2]
[425105255,1781506239000,-2999.19,0.00012329,2]
[425105253,1781506239000,-4318.83,0.00012329,2]
[425105251,1781506239000,-500.0,0.00012328,2]
[425105252,1781506239000,-5182.6,0.00012329,2]
[425105256,1781506239000,-2499.32,0.00012329,2]
[425105264,1781506239000,-581.26,0.00012329,2]
[425105263,1781506239000,-697.51,0.00012329,2]
[425105262,1781506239000,-837.02,0.00012329,2]
[425105259,1781506239000,-1446.37,0.00012329,2]
[425105257,1781506239000,-2082.77,0.00012329,2]
[425105268,1781506239000,-280.32,0.00012329,2]
[425105265,1781506239000,-484.39,0.00012329,2]
[425105260,1781506239000,-1205.31,0.00012329,2]
[425105266,1781506239000,-403.65,0.00012329,2]
[425105250,1781506239000,-500.0,0.00012328,2]
[425105269,1781506239000,-500.0,0.00012329,2]
[425105279,1781506239000,-157.25860506,0.00014555,2]
[425105271,1781506239000,-194.66,0.00012329,2]
[425105258,1781506239000,-1735.64,0.00012329,2]
[425105248,1781506239000,-500.0,0.00012328,2]
[425105234,1781506239000,-500.0,0.00012328,2]
[425105247,1781506239000,-500.0,0.00012328,2]
[425105227,1781506239000,-500.0,0.00012328,2]
[425105225,1781506239000,-500.0,0.00012328,2]
[425105224,1781506239000,-500.0,0.00012328,2]
[425105226,1781506239000,-500.0,0.00012328,2]
[425105233,1781506239000,-500.0,0.00012328,2]
[425105228,1781506239000,-500.0,0.00012328,2]
[425105229,1781506239000,-500.0,0.00012328,2]
[425105231,1781506239000,-500.0,0.00012328,2]
[425105230,1781506239000,-252.0149409,0.00012328,2]
[425105232,1781506239000,-500.0,0.00012328,2]
[425105235,1781506239000,-500.0,0.00012328,2]
[425105243,1781506239000,-500.0,0.00012328,2]
[425105244,1781506239000,-500.0,0.00012328,2]
[425105237,1781506239000,-500.0,0.00012328,2]
[425105245,1781506239000,-500.0,0.00012328,2]
[425105236,1781506239000,-500.0,0.00012328,2]
[425105239,1781506239000,-500.0,0.00012328,2]
[425105238,1781506239000,-500.0,0.00012328,2]
[425105241,1781506239000,-500.0,0.00012328,2]
[425105242,1781506239000,-500.0,0.00012328,2]
[425105240,1781506239000,-500.0,0.00012328,2]
[425105246,1781506239000,-455.59338986,0.00012328,2]
[425105270,1781506239000,-233.6,0.00012329,2]
[425105261,1781506239000,-1004.42,0.00012329,2]
[425105274,1781506239000,-164.15543101,0.00012329,2]
[425105300,1781506239000,-1995.38980615,0.00014694,2]
[425105299,1781506239000,-1995.38980615,0.00014694,2]
[425105304,1781506239000,-1995.38980615,0.00014694,2]
[425105303,1781506239000,-1995.38980615,0.00014694,2]
[425105308,1781506239000,-1995.38980615,0.00014694,2]
[425105314,1781506239000,-2128.41579322,0.00014694,2]
[425105310,1781506239000,-1995.38980615,0.00014694,2]
[425105311,1781506239000,-1995.38980615,0.00014694,2]
[425105315,1781506239000,-2128.41579322,0.00014694,2]
[425105306,1781506239000,-1995.38980615,0.00014694,2]
[425105297,1781506239000,-1995.38980615,0.00014694,2]
[425105305,1781506239000,-1995.38980615,0.00014694,2]
[425105313,1781506239000,-2128.41579322,0.00014694,2]
[425105312,1781506239000,-1995.38980615,0.00014694,2]
[425105317,1781506239000,-2128.41579322,0.00014694,2]
[425105316,1781506239000,-2128.41579322,0.00014694,2]
[425105322,1781506239000,-303057.0155579,0.00014696,2]
[425105318,1781506239000,-2128.41579322,0.00014694,2]
[425105320,1781506239000,-2128.41579322,0.00014694,2]
[425105319,1781506239000,-2128.41579322,0.00014694,2]
[425105321,1781506239000,-2128.41579322,0.00014694,2]
[425105272,1781506239000,-162.22,0.00012329,2]
[425105309,1781506239000,-1995.38980615,0.00014694,2]
[425105296,1781506239000,-500.0,0.00014694,2]
[425105307,1781506239000,-1995.38980615,0.00014694,2]
[425105291,1781506239000,-1995.38980615,0.00014694,2]
[425105273,1781506239000,-811.12,0.00012329,2]
[425105302,1781506239000,-1995.38980615,0.00014694,2]
[425105276,1781506239000,-8321.10627203,0.00013325,2]
[425105277,1781506239000,-8321.10627203,0.00014421,2]
[425105275,1781506239000,-506.67903297,0.00012603,2]
[425105280,1781506239000,-152.42,0.00014566,2]
[425105282,1781506239000,-227489.15856944,0.00014596,2]
[425105281,1781506239000,-152.45,0.00014579,2]
[425105283,1781506239000,-2725.57196112,0.00014596,2]
[425105284,1781506239000,-7031.587956,0.00014596,2]
[425105289,1781506239000,-1995.38980615,0.00014694,2]
[425105278,1781506239000,-157.25860506,0.00014466,2]
[425105287,1781506239000,-168.146128,0.00014623,2]
[425105301,1781506239000,-1995.38980615,0.00014694,2]
[425105286,1781506239000,-275379.88290384,0.00014596,2]
[425105290,1781506239000,-500.0,0.00014694,2]
[425105294,1781506239000,-1995.38980615,0.00014694,2]
[425105295,1781506239000,-1995.38980615,0.00014694,2]
[425105292,1781506239000,-1995.38980615,0.00014694,2]
[425105288,1781506239000,-157.25860506,0.00014644,2]
[425105298,1781506239000,-494.62692589,0.00014694,2]
[425105285,1781506239000,-5568.48408978,0.00014596,2]
[425105293,1781506239000,-1995.38980615,0.00014694,2]
[425105349,1781506241000,-18681.69437995,0.00014696,2]
[425105383,1781506665000,-354.40912575,8.6e-05,2]
[425105384,1781506666000,-266.58174353,8.6e-05,2]
[425105386,1781506671000,-77.99673014,9.5e-05,2]
[425105385,1781506671000,-146.20343076,8.6e-05,2]
[425105530,1781507431000,-356.75427376,0.00011529,2]
[425105536,1781507431000,-1668.4034872,0.00012329,2]
[425105532,1781507431000,-76.70383631,0.00012329,2]
[425105683,1781507446000,-461.38,0.00012329,2]
[425105673,1781507446000,-2856.72,0.00012329,2]
[425105672,1781507446000,-1682.96267649,0.00012329,2]
[425105675,1781507446000,-1983.84,0.00012329,2]
[425105677,1781507446000,-1377.66,0.00012329,2]
[425105674,1781507446000,-2380.6,0.00012329,2]
[425105678,1781507446000,-1148.05,0.00012329,2]
[425105676,1781507446000,-1653.2,0.00012329,2]
[425105680,1781507446000,-797.26,0.00012329,2]
[425105690,1781507446000,-772.6,0.00012329,2]
[425105691,1781507446000,-152.21,0.00013154,2]
[425105681,1781507446000,-664.38,0.00012329,2]
[425105686,1781507446000,-267.0,0.00012329,2]
[425105689,1781507446000,-154.52,0.00012329,2]
[425105688,1781507446000,-185.42,0.00012329,2]
[425105685,1781507446000,-320.4,0.00012329,2]
[425105682,1781507446000,-553.65,0.00012329,2]
[425105679,1781507446000,-956.71,0.00012329,2]
[425105699,1781507446000,-48.1270414,0.00014394,2]
[425105687,1781507446000,-222.5,0.00012329,2]
[425105695,1781507446000,-152.58,0.00013245,2]
[425105692,1781507446000,-152.31,0.0001318,2]
[425105694,1781507446000,-152.75,0.00013245,2]
[425105693,1781507446000,-152.45,0.00013212,2]
[425105696,1781507446000,-329.18389321,0.00013699,2]
[425105698,1781507446000,-192.278773,0.00014084,2]
[425105697,1781507446000,-587.5846159,0.00013795,2]
[425105684,1781507446000,-384.48,0.00012329,2]
[425105975,1781508631000,-201.1340303,0.0001233,2]
[425105977,1781508631000,-358.80874334,0.0001233,2]
[425105978,1781508631000,-2319.75300175,0.00012987,2]
[425105976,1781508631000,-229.8674632,0.0001233,2]
[425105982,1781508632000,-540.13363276,0.00013391,2]
[425105984,1781508632000,-575.92824447,0.00013391,2]
[425105983,1781508632000,-1693.52350633,0.00013391,2]
[425105981,1781508632000,-1617.89122092,0.00013391,2]
[425105980,1781508632000,-300.0,0.0001339,2]
[425105979,1781508632000,-2745.01496365,0.00012987,2]
[425106078,1781508638000,-500.0,0.00014291,2]
[425106074,1781508638000,-342.0113458,0.00014291,2]
[425106068,1781508638000,-1000.0,0.00013699,2]
[425106063,1781508638000,-500.0,0.00013698,2]
[425106070,1781508638000,-157.252,0.00014008,2]
[425106067,1781508638000,-500.0,0.00013698,2]
[425106061,1781508638000,-3620.35573072,0.00013391,2]
[425106065,1781508638000,-500.0,0.00013698,2]
[425106072,1781508638000,-12736.42265745,0.00014193,2]
[425106082,1781508638000,-500.0,0.00014291,2]
[425106080,1781508638000,-527.04687998,0.00014291,2]
[425106084,1781508638000,-500.0,0.00014291,2]
[425106086,1781508638000,-500.0,0.00014291,2]
[425106090,1781508638000,-500.0,0.00014291,2]
[425106088,1781508638000,-500.0,0.00014291,2]
[425106094,1781508638000,-546.23884813,0.00014293,2]
[425106092,1781508638000,-500.0,0.00014293,2]
[425106096,1781508638000,-11196.68942383,0.00014294,2]
[425106076,1781508638000,-500.97287603,0.00014291,2]
[425106355,1781508669000,1949.02881876,0.00014,2]
[425106362,1781508805000,213.78,0.00019,30]
[425106397,1781509832000,-3845.35,0.00012322,2]
[425106398,1781509833000,-702.33928466,0.00012322,2]
[425106400,1781509833000,-775.88026374,0.00012446,2]
[425106399,1781509833000,-452.31071534,0.00012322,2]
[425106401,1781509833000,-621.82,0.00012446,2]
[425106404,1781509833000,-304.45979512,0.00013088,2]
[425106402,1781509833000,-367.11526244,0.00012446,2]
[425106403,1781509833000,-12.50234758,0.00013088,2]
[425106407,1781509838000,-832.13529868,0.00013088,2]
[425106406,1781509838000,-1610.4917356,0.00013088,2]
[425106415,1781509841000,-508.19858951,0.0001409,2]
[425106410,1781509841000,-374.32257821,0.00013699,2]
[425106411,1781509841000,-165.414,0.0001381,2]
[425106412,1781509841000,-177.64912486,0.00013994,2]
[425106413,1781509841000,-515.64039301,0.0001405,2]
[425106416,1781509841000,-139.31505432,0.00014091,2]
[425106409,1781509841000,-685.88238072,0.00013088,2]
[425106420,1781509841000,-477.48999646,0.00014091,2]
[425106422,1781509841000,-833.51445525,0.00014091,2]
[425106419,1781509841000,-1007.31052901,0.00014091,2]
[425106417,1781509841000,-360.68494568,0.00014091,2]
[425106418,1781509841000,-397.3906626,0.00014091,2]
[425106423,1781509841000,-76.93619057,0.00014091,2]
[425106421,1781509841000,-651.28607022,0.00014091,2]
[425106414,1781509841000,-500.0,0.0001409,2]
[425106438,1781509845000,-1058.80576668,0.00014091,2]
[425106441,1781509845000,-1484.80052547,0.00014091,2]
[425106444,1781509845000,-500.0,0.00014091,2]
[425106442,1781509845000,-1484.80052547,0.00014091,2]
[425106437,1781509845000,-425.99475879,0.00014091,2]
[425106445,1781509845000,-500.0,0.00014091,2]
[425106434,1781509845000,-238.82628527,0.00014091,2]